bitfinex-derivatives/quotes_ETHF0:USTF0_20241105
["timestamp","ask_amount","ask_price","bid_price","bid_amount"]
[1730779533363,1.91338463,2420.2,2420.1,4.61959617]
[1730779533576,3.2078,2420.2,2420.1,4.61959617]
[1730779533768,3.2078,2420.2,2420.1,1.46290612]
[1730779534065,3.76629427,2420.2,2420.1,4.61913045]
[1730779534464,4.19199427,2420.2,2420.1,4.61913045]
[1730779536670,1.91478463,2420.2,2420.1,4.61913045]
[1730779536862,5.12258463,2420.2,2420.1,4.61913045]
[1730779537671,5.12258463,2420.2,2420.1,4.59790139]
[1730779537969,5.12258463,2420.2,2420.1,4.59792509]
[1730779538166,5.12258463,2420.2,2420.1,3.98138897]
[1730779539772,5.12258463,2420.2,2420.1,3.56791897]
[1730779539773,11.15711926,2420.2,2420.1,3.56791897]
[1730779539976,11.15711926,2420.2,2420.1,1.12522897]
[1730779540271,0.41352,2419.9,2419.7,0.41353]
[1730779540569,10.74366926,2420.2,2419.6,0.64083793]
[1730779540570,5.16158463,2419.8,2419.6,1.05437793]
[1730779540777,5.57511463,2419.8,2419.6,0.41354]
[1730779541074,0.41354,2419.7,2419.5,1.05440793]
[1730779541263,1.48908463,2419.6,2419.5,1.05440793]
[1730779541471,1.48908463,2419.6,2419.5,0.41357]
[1730779543676,1.90264463,2419.6,2419.4,1.74838]
[1730779543876,3.2078,2419.5,2419.4,1.74838]
[1730779544269,3.2078,2419.5,2419.2,0.64083793]
[1730779544270,3.2078,2419.5,2419.3,0.4136]
[1730779544478,2.35977463,2419.4,2419.3,0.41361]
[1730779544874,2.35977463,2419.4,2419.2,0.41361]
[1730779545672,1.94618463,2419.4,2419.1,0.8622]
[1730779545980,2.35978463,2419.4,2419.2,0.41361]
[1730779546178,3.2078,2419.3,2419.2,0.41361]
[1730779546685,3.62141,2419.3,2419.2,0.41361]
[1730779546985,3.2078,2419.3,2419.2,0.41362]
[1730779547277,3.2078,2419.3,2419.0,0.41365]
[1730779547278,0.41363,2419.2,2419.0,0.41365]
[1730779547468,1.94678463,2419.2,2418.7,0.64059225]
[1730779547674,0.87133,2419.2,2419.0,0.41364]
[1730779547881,4.69688463,2419.1,2419.0,0.41364]
[1730779548472,4.69688463,2419.1,2418.7,1.389]
[1730779548473,5.11052463,2419.1,2418.8,0.41369]
[1730779548675,1.48908463,2418.9,2418.8,0.41369]
[1730779548982,1.48908463,2418.9,2418.8,1.70696737]
[1730779550076,1.48908463,2418.9,2418.8,2.74158319]
[1730779550278,7.52623926,2418.9,2418.8,1.03461582]
[1730779550472,5.62348463,2418.9,2418.8,0.41369]
[1730779551280,1.48908463,2418.9,2418.4,0.8996]
[1730779551483,0.4626,2419.0,2418.8,0.41369]
[1730779551679,3.2078,2418.9,2418.8,0.41369]
[1730779551990,3.2078,2418.9,2418.7,0.4137]
[1730779552179,1.48908463,2418.6,2418.5,0.41374]
[1730779552378,4.69688463,2418.6,2418.5,2.09512724]
[1730779553582,4.69688463,2418.6,2418.5,6.22952724]
[1730779554490,4.69688463,2418.6,2418.5,5.1948274]
[1730779554783,4.69688463,2418.6,2418.5,6.22952196]
[1730779554986,4.69688463,2418.6,2418.5,5.1948274]
[1730779556985,3.2078,2418.6,2418.5,5.1948274]
[1730779557287,3.2078,2418.6,2418.5,6.2294648]
[1730779557490,3.2078,2418.9,2418.8,0.41369]
[1730779558192,3.2078,2418.9,2418.8,0.87539]
[1730779562389,1.95168463,2419.0,2418.9,0.41367]
[1730779562592,3.2078,2419.0,2418.9,4.54807]
[1730779562783,3.2078,2419.0,2418.9,0.41367]
[1730779562991,3.2078,2419.0,2418.9,4.54807]
[1730779564694,3.2078,2419.0,2418.9,5.19465039]
[1730779564894,1.48908463,2419.1,2418.9,4.78098039]
[1730779565089,1.48908463,2419.1,2419.0,0.41366]
[1730779565298,4.69688463,2419.1,2419.0,0.41366]
[1730779565997,1.48908463,2419.1,2419.0,0.41366]
[1730779566198,4.69688463,2419.1,2419.0,0.41366]
[1730779567997,1.48908463,2419.1,2419.0,0.41366]
[1730779568195,4.69688463,2419.1,2419.0,0.41366]
[1730779576498,4.69688463,2419.1,2419.0,1.06026046]
[1730779577900,4.69688463,2419.1,2418.2,2.17995]
[1730779577901,9.27118463,2419.1,2418.4,0.096]
[1730779578102,1.48908463,2418.6,2418.5,1.681239]
[1730779578305,4.69688463,2418.6,2418.5,1.06037038]
[1730779578895,5.14988463,2418.6,2418.5,1.06037038]
[1730779580008,5.14988463,2418.6,2418.5,0.41374]
[1730779580207,1.94208463,2418.6,2418.5,1.06045692]
[1730779580502,1.94208463,2418.6,2418.5,0.41374]
[1730779580704,5.14988463,2418.6,2418.5,1.06046013]
[1730779581095,1.94208463,2418.6,2418.5,1.06046013]
[1730779581302,5.14988463,2418.6,2418.5,2.09521237]
[1730779583701,5.14988463,2418.6,2418.5,2.09521434]
[1730779584601,5.14988463,2418.6,2418.5,3.3886534]
[1730779585210,5.14988463,2418.6,2418.5,3.3886556]
[1730779587408,5.14988463,2418.6,2418.5,0.41374]
[1730779587711,5.14988463,2418.6,2418.5,3.38863783]
[1730779588014,1.94208463,2418.6,2418.5,3.38863783]
[1730779588212,9.69801463,2418.6,2418.5,1.68146399]
[1730779588509,5.14988463,2418.6,2418.5,2.09520399]
[1730779588708,5.14988463,2418.6,2418.5,3.38878154]
[1730779589603,5.14988463,2418.6,2418.5,4.26248154]
[1730779590209,5.14988463,2418.6,2418.5,4.4862996]
[1730779590405,5.14988463,2418.6,2418.5,1.93415577]
[1730779590606,5.14988463,2418.6,2418.5,4.26233256]
[1730779591312,5.14988463,2418.6,2418.5,3.61562467]
[1730779591505,5.14988463,2418.6,2418.5,4.48623138]
[1730779591702,5.14988463,2418.6,2418.5,1.28744]
[1730779591910,5.14988463,2418.6,2418.5,4.48623846]
[1730779592107,5.14988463,2418.6,2418.5,4.48623308]
[1730779595009,3.6608,2418.6,2418.5,4.48623308]
[1730779597123,5.14988463,2418.6,2418.5,4.48623308]
[1730779599013,5.14988463,2418.6,2418.5,1.28744]
[1730779599215,5.14988463,2418.6,2418.5,4.48630211]
[1730779602611,5.14988463,2418.6,2418.5,1.28744]
[1730779602819,3.2078,2418.6,2418.5,4.48628589]
[1730779603119,3.2078,2418.6,2418.5,2.57502335]
[1730779603317,3.2078,2418.6,2418.5,4.48605118]
[1730779604224,3.2078,2418.6,2418.5,5.12692504]
[1730779604424,3.2078,2418.6,2418.5,4.48605118]
[1730779605323,3.2078,2418.6,2418.5,4.48600777]
[1730779606623,3.2078,2418.6,2418.5,1.28744]
[1730779606820,3.2078,2418.6,2418.5,4.48603372]
[1730779607127,1.48908463,2418.8,2418.7,0.41371]
[1730779607324,4.69688463,2418.8,2418.7,3.61230372]
[1730779607626,4.69688463,2418.8,2418.7,3.38837606]
[1730779609526,4.69688463,2418.8,2418.7,3.61236064]
[1730779609833,4.69688463,2418.8,2418.7,3.38837606]
[1730779610027,1.48908463,2418.8,2418.7,3.38837606]
[1730779610440,1.48908463,2418.8,2418.7,3.61237067]
[1730779610728,4.69688463,2418.8,2418.7,3.61237067]
[1730779611834,1.48908463,2418.8,2418.7,3.61237067]
[1730779612029,4.69688463,2418.8,2418.7,3.61237067]
[1730779613933,4.69688463,2418.8,2418.7,2.57777469]
[1730779614137,4.69688463,2418.8,2418.7,1.44838382]
[1730779614333,4.69688463,2418.8,2418.7,1.89496194]
[1730779614334,10.73405926,2418.8,2418.7,1.89496194]
[1730779614533,10.73405926,2418.8,2417.9,0.5484]
[1730779614534,11.33836926,2418.8,2417.9,0.5484]
[1730779614736,0.41379,2418.3,2418.1,0.41381]
[1730779614934,3.2078,2418.2,2418.0,0.41382]
[1730779615132,3.2078,2418.2,2418.1,0.2242314]
[1730779615325,3.2078,2418.2,2418.1,0.6380414]
[1730779615326,4.69688463,2418.2,2418.1,0.6380414]
[1730779616334,4.69688463,2418.2,2418.1,0.41381]
[1730779616535,3.2078,2418.2,2418.1,0.41381]
[1730779616934,3.2078,2418.2,2418.1,4.54901]
[1730779617132,1.48908463,2418.5,2418.4,0.41376]
[1730779618136,3.2078,2418.6,2418.5,0.41374]
[1730779622438,3.2078,2418.6,2418.5,1.65602068]
[1730779623338,3.2078,2418.6,2418.5,2.16611019]
[1730779624437,3.2078,2418.6,2418.5,3.29157397]
[1730779624645,3.2078,2418.6,2418.5,1.05568098]
[1730779624844,3.2078,2418.6,2418.5,8.57800437]
[1730779625137,3.2078,2418.9,2418.5,8.57800437]
[1730779625337,3.2078,2418.9,2418.8,0.41369]
[1730779625538,3.2078,2418.9,2418.8,3.29154839]
[1730779626336,3.2078,2418.9,2418.8,8.5571855]
[1730779626540,3.2078,2418.9,2418.8,8.55706926]
[1730779627334,3.2078,2418.9,2418.8,8.04707284]
[1730779627542,3.2078,2419.2,2419.1,0.41364]
[1730779627743,3.2078,2419.2,2419.1,2.02849684]
[1730779627949,3.2078,2419.2,2419.1,7.40326634]
[1730779628246,3.2078,2419.2,2419.1,9.07527486]
[1730779628847,3.2078,2419.2,2419.1,7.83410536]
[1730779631750,3.2078,2419.5,2419.2,1.03406]
[1730779632050,3.2078,2419.5,2419.4,0.41359]
[1730779632352,3.2078,2419.5,2419.4,1.03408247]
[1730779633050,3.2078,2419.5,2419.4,2.02561323]
[1730779633249,3.2078,2419.5,2419.4,1.03408247]
[1730779635550,3.2078,2419.5,2419.4,0.41359]
[1730779636057,3.2078,2419.5,2419.4,1.03295483]
[1730779637561,3.2078,2419.5,2419.4,5.16575483]
[1730779637948,3.2078,2419.5,2419.4,6.07565483]
[1730779638149,3.2078,2419.5,2419.4,1.94285483]
[1730779639453,3.2078,2419.5,2419.4,6.07524653]
[1730779642259,3.2078,2419.5,2419.4,1.94244653]
[1730779642860,3.2078,2419.5,2419.4,1.94206625]
[1730779643261,1.48908463,2419.7,2419.6,0.41356]
[1730779643560,4.69688463,2419.7,2419.6,0.41356]
[1730779644354,1.48908463,2419.7,2419.6,0.41356]
[1730779644554,4.69688463,2419.7,2419.6,0.41356]
[1730779646562,1.48908463,2419.7,2419.6,0.41356]
[1730779646869,4.69688463,2419.7,2419.6,0.41356]
[1730779649854,3.2078,2420.0,2419.5,1.92938463]
[1730779650058,3.2078,2420.0,2419.9,0.4135]
[1730779650862,3.2078,2420.3,2420.2,0.41345]
[1730779651065,3.2078,2420.3,2420.2,1.90253463]
[1730779651368,3.2078,2420.3,2420.2,0.41345]
[1730779653069,3.2078,2420.3,2420.2,6.03453463]
[1730779653467,1.58508463,2420.9,2420.2,6.65121625]
[1730779653468,3.2078,2420.7,2420.2,6.65121625]
[1730779653659,3.2078,2420.7,2420.6,0.41338]
[1730779653863,1.58508463,2421.2,2420.5,1.48908463]
[1730779654071,1.48908463,2421.2,2421.1,0.4133]
[1730779654461,5.61948463,2421.2,2421.1,0.4133]
[1730779655169,3.2078,2421.3,2420.9,1.48908463]
[1730779655477,3.2078,2421.0,2420.9,0.41333]
[1730779655678,3.2078,2421.0,2420.5,2.14451]
[1730779655679,3.2078,2421.0,2420.5,0.096]
[1730779655973,3.62112,2421.0,2420.3,1.56907]
[1730779656181,3.2078,2421.0,2420.3,0.4395]
[1730779656472,3.2078,2421.0,2420.9,0.41333]
[1730779657681,3.2078,2421.3,2421.2,0.41328]
[1730779657982,7.3382,2421.3,2421.2,0.41328]
[1730779658172,7.3382,2421.3,2420.8,1.03337]
[1730779658478,3.2078,2421.3,2421.1,0.41329]
[1730779658677,3.2078,2421.3,2420.6,0.9921]
[1730779658877,3.2078,2421.3,2420.7,1.03342]
[1730779659080,3.2078,2421.3,2421.2,0.41328]
[1730779659476,7.3382,2421.3,2421.2,0.41328]
[1730779659972,3.2078,2421.3,2421.2,0.41328]
[1730779660378,7.3382,2421.3,2421.2,0.41328]
[1730779660980,7.75147,2421.3,2421.0,0.4133]
[1730779661278,3.2078,2421.3,2420.8,0.4345]
[1730779661477,3.2078,2421.0,2420.9,0.41333]
[1730779661882,7.3382,2421.0,2420.9,0.41333]
[1730779663082,7.75152,2421.0,2420.8,0.41335]
[1730779663279,3.2078,2421.0,2420.6,0.8961]
[1730779663473,3.2078,2421.0,2420.9,0.41333]
[1730779663679,7.3382,2421.0,2420.9,0.41333]
[1730779663879,3.2078,2421.0,2420.9,0.41333]
[1730779664082,7.3382,2421.0,2420.9,0.41333]
[1730779665073,7.75152,2421.0,2420.7,0.41335]
[1730779665388,3.2078,2421.0,2420.8,0.41334]
[1730779666188,3.62112,2421.0,2420.8,0.41334]
[1730779666886,3.2078,2421.0,2420.6,0.8961]
[1730779667282,3.2078,2421.0,2420.9,0.41333]
[1730779667882,0.096,2421.6,2420.9,4.1304]
[1730779668083,0.096,2421.9,2421.8,0.41318]
[1730779668284,4.1288,2422.0,2421.9,0.41315]
[1730779669289,4.1288,2422.0,2421.9,0.41316]
[1730779669689,4.1288,2422.0,2421.8,0.41317]
[1730779669893,0.41315,2422.0,2421.8,0.41317]
[1730779670084,4.1288,2421.9,2421.8,0.41317]
[1730779670588,4.1288,2421.9,2421.8,0.41318]
[1730779671393,4.1288,2421.9,2421.6,0.4571]
[1730779671586,0.41315,2422.0,2421.7,0.41318]
[1730779672185,4.54195,2422.0,2421.7,0.41318]
[1730779672696,0.41316,2421.9,2421.7,0.41318]
[1730779672994,3.2078,2422.1,2421.7,0.41319]
[1730779672995,0.41316,2422.0,2421.7,0.41319]
[1730779673195,0.41315,2422.0,2421.7,0.41319]
[1730779673697,3.2078,2422.1,2421.6,0.4571]
[1730779673890,3.62094,2422.1,2421.8,0.41317]
[1730779674090,3.2078,2422.1,2421.8,0.41317]
[1730779674391,7.74974,2422.1,2421.6,0.4571]
[1730779674591,3.2078,2422.1,2421.6,0.4571]
[1730779674789,0.41315,2422.0,2421.8,0.41317]
[1730779674988,4.1288,2421.9,2421.8,0.41317]
[1730779675185,0.41315,2422.0,2421.8,0.41317]
[1730779675386,0.41315,2422.0,2421.7,0.41318]
[1730779676490,3.2078,2422.0,2421.6,0.4571]
[1730779676686,3.2078,2422.0,2421.9,0.41316]
[1730779676887,3.2078,2422.0,2421.8,0.41317]
[1730779677083,3.62095,2422.0,2421.6,0.4571]
[1730779677291,3.62095,2422.0,2421.7,0.41319]
[1730779677493,0.41315,2422.0,2421.7,0.41319]
[1730779677688,3.62095,2422.0,2421.7,0.41319]
[1730779677893,3.2078,2422.0,2421.8,0.41317]
[1730779678491,7.74975,2422.0,2421.8,0.41317]
[1730779678894,7.74975,2422.0,2421.7,0.41318]
[1730779679094,3.62095,2422.0,2421.6,0.4571]
[1730779679295,3.62095,2422.0,2421.8,0.41317]
[1730779679497,3.2078,2422.0,2421.8,0.41317]
[1730779679797,3.62095,2422.0,2421.8,0.41317]
[1730779680398,7.74975,2422.0,2421.8,0.41317]
[1730779680596,0.41317,2421.9,2421.7,0.41319]
[1730779680991,3.2078,2422.0,2421.7,0.41319]
[1730779681294,3.2078,2422.0,2421.8,0.41317]
[1730779681698,3.62095,2422.0,2421.8,0.41317]
[1730779682004,3.62095,2422.0,2421.7,0.41318]
[1730779682502,0.41317,2421.9,2421.7,0.41318]
[1730779682702,0.41317,2421.9,2421.8,0.4248]
[1730779683095,3.2078,2422.0,2421.8,0.83797]
[1730779683397,3.62095,2422.0,2421.8,0.83797]
[1730779683795,0.41316,2421.9,2421.8,0.4248]
[1730779684000,7.3366,2422.0,2421.8,0.4248]
[1730779684194,0.41323,2421.6,2421.3,0.096]
[1730779684394,0.41323,2421.6,2421.3,0.83806]
[1730779684395,3.2078,2421.4,2421.3,0.83806]
[1730779684801,7.3374,2421.4,2421.3,0.83806]
[1730779685000,7.3374,2421.4,2421.3,0.4248]
[1730779685001,3.2078,2421.4,2421.3,0.4248]
[1730779686308,3.62105,2421.4,2421.3,0.4248]
[1730779686505,3.2078,2421.4,2421.3,0.4248]
[1730779686808,3.62105,2421.4,2421.3,0.4248]
[1730779688001,3.2078,2421.4,2421.3,0.83806]
[1730779688517,3.2078,2421.4,2421.3,0.4248]
[1730779688809,3.2078,2421.4,2421.3,0.83806]
[1730779689002,3.2078,2421.4,2421.3,0.4248]
[1730779689198,3.2078,2421.4,2421.0,0.8505]
[1730779689399,3.2078,2421.1,2420.6,3.3038]
[1730779689596,3.2078,2421.1,2420.9,0.41333]
[1730779690205,3.6211,2421.1,2420.8,0.41334]
[1730779690401,3.6211,2421.1,2420.7,0.8881]
[1730779690705,3.6211,2421.1,2420.9,0.41333]
[1730779690911,3.2078,2421.1,2420.9,0.41333]
[1730779691299,3.6211,2421.1,2420.9,0.41333]
[1730779691499,3.2078,2421.1,2420.9,0.41333]
[1730779691711,3.6211,2421.1,2420.9,0.41333]
[1730779691904,0.4133,2421.1,2420.9,0.41333]
[1730779693205,3.6211,2421.1,2420.9,0.41333]
[1730779693405,3.6211,2421.1,2420.8,0.41334]
[1730779694201,3.6211,2421.1,2420.7,0.8881]
[1730779694502,3.6211,2421.1,2420.9,0.41333]
[1730779694702,3.2078,2421.1,2420.7,0.8881]
[1730779694906,0.41331,2421.1,2420.9,0.41333]
[1730779695204,3.62111,2421.1,2420.9,0.41333]
[1730779695511,3.62111,2421.1,2420.7,0.8881]
[1730779695711,3.62111,2421.1,2420.8,1.01661956]
[1730779696008,0.41331,2421.1,2420.9,0.60326956]
[1730779696211,3.62111,2421.1,2420.8,0.41335]
[1730779696412,3.62111,2421.1,2420.9,0.60337864]
[1730779696600,3.62111,2421.1,2420.8,0.41335]
[1730779696807,3.62111,2421.1,2420.9,1.01699688]
[1730779697007,3.6211,2421.1,2420.9,0.41333]
[1730779697407,3.6211,2421.1,2420.8,1.48859102]
[1730779697610,3.6211,2421.1,2420.9,0.60379043]
[1730779697910,3.2078,2421.1,2420.9,0.41333]
[1730779698116,3.2078,2421.4,2421.0,2.00798924]
[1730779698409,3.2078,2421.4,2421.3,0.41326]
[1730779698610,3.2078,2421.4,2421.1,0.8832]
[1730779698820,3.2078,2421.4,2421.2,0.6037209]
[1730779699006,3.2078,2421.4,2421.1,1.29649]
[1730779699007,0.41326,2421.3,2421.1,1.29649]
[1730779699210,3.62106,2421.4,2421.2,0.60379254]
[1730779699410,3.2078,2421.4,2421.1,0.8832]
[1730779699711,3.2078,2421.4,2421.2,1.01716037]
[1730779699909,3.2078,2421.4,2421.2,0.41327]
[1730779700915,3.62105,2421.4,2421.2,0.41327]
[1730779701510,0.41325,2421.4,2421.2,0.41327]
[1730779701816,3.62105,2421.4,2421.2,0.41327]
[1730779702509,3.62105,2421.4,2421.2,0.41328]
[1730779703814,0.41325,2421.4,2421.2,0.41328]
[1730779704012,3.62105,2421.4,2421.2,0.41328]
[1730779705212,0.41325,2421.4,2421.2,0.41328]
[1730779705414,3.62105,2421.4,2421.2,0.41328]
[1730779705818,4.69639102,2421.4,2421.1,0.8832]
[1730779706019,0.41328,2421.3,2421.1,1.29649]
[1730779706219,0.41329,2421.2,2421.0,0.4384]
[1730779706420,0.4133,2421.1,2421.0,0.4384]
[1730779706728,0.41335,2420.9,2420.7,0.86666]
[1730779707208,5.54860102,2421.1,2420.9,0.41333]
[1730779707411,4.1304,2421.0,2420.9,0.41333]
[1730779707809,4.1304,2421.0,2420.8,0.41334]
[1730779708009,5.54860102,2421.1,2420.8,0.41334]
[1730779708317,5.54860102,2421.1,2420.9,0.41333]
[1730779708817,9.67900102,2421.1,2420.8,0.41334]
[1730779709120,5.54860102,2421.1,2420.8,0.41334]
[1730779709821,5.54860102,2421.1,2420.7,0.4533]
[1730779710023,5.54860102,2421.1,2420.9,0.41333]
[1730779710225,5.54860102,2421.1,2420.8,0.41334]
[1730779710525,0.41332,2421.0,2420.8,0.41334]
[1730779710920,3.2078,2421.0,2420.8,0.41334]
[1730779711229,3.2078,2421.0,2420.8,0.41335]
[1730779711230,3.62112,2421.0,2420.8,0.41335]
[1730779711520,3.62112,2421.0,2420.7,0.4533]
[1730779711722,3.62112,2421.0,2420.7,0.86666]
[1730779711920,3.62112,2421.0,2420.7,0.4533]
[1730779712225,3.62112,2421.0,2420.8,0.41334]
[1730779712627,3.62112,2421.0,2420.7,0.86666]
[1730779712824,3.62112,2421.0,2420.7,0.4533]
[1730779713019,3.2078,2421.0,2420.8,0.41334]
[1730779713225,3.62112,2421.0,2420.8,0.41334]
[1730779713424,3.2078,2421.0,2420.8,0.41334]
[1730779713826,3.2078,2421.0,2420.9,0.41333]
[1730779714435,3.2078,2421.0,2420.8,0.41334]
[1730779714625,3.62112,2421.0,2420.8,0.41334]
[1730779715229,0.85221,2421.1,2420.8,0.41334]
[1730779715421,3.2078,2421.0,2420.8,0.41334]
[1730779715827,3.2078,2421.0,2420.7,0.4533]
[1730779716027,3.2078,2421.0,2420.9,0.41333]
[1730779716530,3.2078,2421.0,2420.8,0.41334]
[1730779716838,0.85221,2421.1,2420.8,0.41334]
[1730779717233,0.096,2421.5,2420.9,5.61899102]
[1730779717531,0.096,2421.7,2421.4,1.48859102]
[1730779717833,0.41319,2421.8,2421.5,1.01332575]
[1730779718036,0.4287,2421.9,2421.3,3.2078]
[1730779718236,0.4287,2421.9,2421.7,0.4132]
[1730779718840,0.4287,2421.9,2421.7,0.41318]
[1730779720533,0.4287,2421.9,2421.8,0.41318]
[1730779722337,3.2078,2422.0,2421.8,0.41318]
[1730779722535,3.2078,2422.0,2421.4,1.3326]
[1730779722729,0.41316,2421.9,2421.6,0.4132]
[1730779722930,6.43238633,2422.0,2421.4,1.3326]
[1730779723126,0.4132,2421.7,2421.4,1.30495]
[1730779723327,0.4591,2421.6,2421.4,0.461]
[1730779723527,0.4591,2421.6,2421.3,3.62106]
[1730779723934,0.4591,2421.6,2421.4,0.41324]
[1730779724333,0.4591,2421.6,2421.3,3.2078]
[1730779724536,0.4591,2421.6,2421.5,0.41323]
[1730779724736,0.4591,2421.6,2421.4,0.41324]
[1730779725941,0.4591,2421.6,2421.3,0.41325]
[1730779726133,0.4591,2421.6,2421.2,0.4359]
[1730779726334,0.4591,2421.6,2421.4,0.41324]
[1730779727342,0.4591,2421.6,2421.4,0.41325]
[1730779728232,0.4591,2421.6,2421.2,0.4359]
[1730779728438,0.87232,2421.6,2421.3,0.41326]
[1730779728841,0.87232,2421.6,2421.2,0.84918]
[1730779728842,3.2078,2421.4,2421.2,0.84918]
[1730779729039,0.41327,2421.3,2421.0,0.41331]
[1730779729244,0.84727,2421.3,2421.0,0.41331]
[1730779730441,0.434,2421.3,2421.1,0.41329]
[1730779731339,0.84727,2421.3,2421.0,0.4133]
[1730779731539,0.84727,2421.3,2420.9,0.4321]
[1730779731540,0.434,2421.3,2420.9,0.4321]
[1730779731741,0.434,2421.3,2421.1,0.41329]
[1730779732634,0.4454,2421.2,2421.1,0.41329]
[1730779732840,0.4454,2421.2,2420.9,0.4321]
[1730779733044,0.4454,2421.2,2421.1,0.4133]
[1730779736640,3.2078,2421.4,2420.9,0.4321]
[1730779736847,0.84432,2421.6,2421.3,0.41325]
[1730779737444,0.84432,2421.6,2420.9,3.65668633]
[1730779737445,3.22458633,2421.4,2420.9,0.4321]
[1730779737657,3.2078,2421.2,2420.7,0.096]
[1730779737955,0.84441,2421.1,2420.8,0.41334]
[1730779738357,0.8444,2421.1,2420.8,0.41334]
[1730779738549,0.4311,2421.1,2421.0,0.41332]
[1730779738747,0.4311,2421.1,2420.7,1.03343]
[1730779738748,0.41325,2421.4,2421.1,0.4133]
[1730779738949,0.444,2421.4,2421.2,0.4238]
[1730779739250,0.444,2421.4,2421.2,0.83707]
[1730779739452,0.444,2421.4,2421.2,0.4238]
[1730779739648,0.85725,2421.4,2421.2,0.4238]
[1730779740353,0.444,2421.4,2421.3,0.41326]
[1730779740749,0.85725,2421.4,2421.2,0.4238]
[1730779740947,0.41325,2421.4,2421.2,0.4238]
[1730779741152,3.6664,2421.8,2421.6,0.4132]
[1730779741356,3.6664,2421.8,2421.7,0.8544]
[1730779741357,0.4586,2421.8,2421.7,0.8544]
[1730779741655,0.4586,2421.8,2421.7,0.4412]
[1730779743154,0.4586,2421.8,2421.7,0.8714]
[1730779746353,0.87178,2421.8,2421.7,0.8714]
[1730779746748,0.87178,2421.8,2421.7,0.4412]
[1730779749760,0.4586,2421.8,2421.7,0.4412]
[1730779751064,0.87178,2421.8,2421.7,0.4412]
[1730779751461,0.4586,2421.8,2421.7,0.4412]
[1730779752867,3.2078,2421.9,2421.7,0.4412]
[1730779753162,3.2078,2421.9,2421.8,0.4611]
[1730779753361,3.2078,2421.9,2421.8,0.9081]
[1730779757364,3.2078,2421.9,2421.8,1.32128]
[1730779757766,3.2078,2421.9,2421.8,0.9081]
[1730779759562,3.2078,2421.9,2421.8,1.32128]
[1730779759869,3.62096,2421.9,2421.8,0.9081]
[1730779760063,3.2078,2421.9,2421.8,0.9081]
[1730779760258,3.2078,2421.9,2421.8,1.32128]
[1730779760464,3.2078,2421.9,2421.8,0.9081]
[1730779761771,3.2078,2421.9,2421.8,1.32128]
[1730779761964,3.2078,2421.9,2421.8,0.9081]
[1730779762166,3.2078,2421.9,2421.8,1.32128]
[1730779762469,3.2078,2421.9,2421.8,0.9081]
[1730779762667,3.2078,2421.9,2421.8,1.32128]
[1730779764275,0.448,2422.1,2421.8,0.9081]
[1730779764466,0.448,2422.1,2422.0,0.41315]
[1730779764965,0.448,2422.1,2421.9,0.41315]
[1730779765170,0.86113,2422.1,2421.9,0.41315]
[1730779765569,0.448,2422.1,2421.9,0.41315]
[1730779766576,0.86113,2422.1,2421.9,0.41315]
[1730779766780,0.86113,2422.1,2421.8,1.32127]
[1730779767972,0.448,2422.1,2421.9,0.41316]
[1730779768367,0.86113,2422.1,2421.9,0.41316]
[1730779768569,0.448,2422.1,2421.9,0.41316]
[1730779769371,0.86113,2422.1,2421.9,0.41316]
[1730779769567,0.448,2422.1,2421.9,0.41316]
[1730779770274,0.86113,2422.1,2421.9,0.41316]
[1730779770670,0.448,2422.1,2421.9,0.41316]
[1730779771077,4.69607373,2422.2,2422.0,0.41315]
[1730779771268,4.69607373,2422.2,2422.1,0.423]
[1730779771470,4.69607373,2422.2,2422.1,0.83613]
[1730779771784,4.69607373,2422.2,2422.1,0.423]
[1730779772271,3.2078,2422.5,2422.1,0.423]
[1730779772479,1.95287373,2422.6,2422.5,0.41306]
[1730779772664,1.95287373,2422.6,2422.4,0.41307]
[1730779772975,2.36592373,2422.6,2422.3,0.41308]
[1730779773272,1.95287373,2422.6,2422.4,0.41307]
[1730779773474,4.69607373,2422.5,2422.2,0.4311]
[1730779773677,0.41311,2422.2,2422.1,0.423]
[1730779773878,0.41311,2422.2,2421.9,0.87126]
[1730779773879,1.48827373,2422.3,2421.9,0.4679]
[1730779774176,1.90142373,2422.0,2421.8,0.4502]
[1730779774580,2.34282373,2422.0,2421.8,0.4502]
[1730779774779,1.92967373,2422.0,2421.8,0.4502]
[1730779774981,2.34282373,2422.0,2421.8,0.4502]
[1730779775882,1.92967373,2422.0,2421.8,0.4502]
[1730779776767,2.34282373,2422.0,2421.8,0.4502]
[1730779777176,1.92967373,2422.0,2421.8,0.86338]
[1730779777378,0.4414,2422.0,2421.8,0.4502]
[1730779777681,0.4414,2422.0,2421.8,0.86338]
[1730779777880,0.4414,2422.0,2421.8,0.4502]
[1730779778284,0.4414,2422.0,2421.9,0.41316]
[1730779779581,0.4414,2422.0,2421.8,0.86337]
[1730779779974,0.4414,2422.0,2421.9,0.41316]
[1730779780382,0.4414,2422.0,2421.8,0.86337]
[1730779780678,0.4414,2422.0,2421.9,0.41316]
[1730779781677,3.6492,2422.0,2421.8,0.86337]
[1730779782478,3.6492,2422.0,2421.9,0.41316]
[1730779783279,3.2078,2422.0,2421.9,0.41316]
[1730779784382,3.2078,2422.0,2421.9,1.00940032]
[1730779785590,0.4646,2422.1,2421.9,1.00940032]
[1730779785793,0.4646,2422.1,2421.9,0.41316]
[1730779786588,0.4646,2422.1,2421.8,0.4502]
[1730779786792,0.4646,2422.1,2421.9,1.00961393]
[1730779786989,0.4646,2422.1,2421.9,0.41315]
[1730779787191,0.4646,2422.1,2421.8,0.86337]
[1730779787490,0.87774,2422.1,2421.9,0.59646877]
[1730779787694,0.87774,2422.1,2421.8,0.86337]
[1730779787892,0.87773,2422.1,2421.8,0.86337]
[1730779788297,0.87773,2422.1,2421.9,0.59650059]
[1730779788502,0.4646,2422.1,2421.9,0.41316]
[1730779788796,0.87774,2422.1,2421.8,0.86337]